fUSD/lending_fUSD_20260130
["ID","MTS","AMOUNT","RATE_DAILY","PERIOD"]
[404022095,1769737838930,-577.87,0.00015004,2]
[404022096,1769737838942,-107.95506453,0.00015049,2]
[404022097,1769737838957,-469.91493547,0.00015049,2]
[404022098,1769737838967,-250.0,0.0001507,2]
[404022099,1769737838977,-1680.0,0.0001509,2]
[404022100,1769737838986,-425.08506453,0.00015095,2]
[404022101,1769737839119,-152.78493547,0.00015095,2]
[404022102,1769737839129,-1000.0,0.00015205,2]
[404022103,1769737839141,-1147.21506453,0.00015265,2]
[404022104,1769737839153,-812.78574036,0.00015265,2]
[404022105,1769737839165,-39.99919511,0.00015265,2]
[404022106,1769737839175,-770.48910802,0.00015265,2]
[404022107,1769737839202,-865.07238644,0.00015265,2]
[404022108,1769737839214,-364.43850554,0.00015265,2]
[404022109,1769737839224,-213.42413841,0.00015265,2]
[404022110,1769737839236,-1786.57586159,0.00015265,2]
[404022111,1769737839246,-269.67413841,0.00015265,2]
[404022112,1769737839256,-545.0,0.00015265,2]
[404022113,1769737839268,-714.78786159,0.00015265,2]
[404022114,1769737839277,-1000.0,0.00015265,2]
[404022115,1769737839285,-172.73420995,0.00015265,2]
[404022116,1769737839297,-827.26579005,0.00015265,2]
[404022117,1769737839307,-1000.0,0.00015265,2]
[404022118,1769737839316,-1000.0,0.00015265,2]
[404022119,1769737839325,-1000.0,0.00015265,2]
[404022120,1769737839338,-1000.0,0.00015265,2]
[404022121,1769737839348,-1000.0,0.00015265,2]
[404022122,1769737839357,-155.498,0.00015274,2]
[404022123,1769737839366,-9131.9,0.00015278,2]
[404022124,1769737839375,-152.44152919,0.00015284,2]
[404022125,1769737839385,-918.64355495,0.00015284,2]
[404022126,1769737839398,-1604.9,0.00015456,2]
[404022127,1769737839408,-500.0,0.00015469,2]
[404022128,1769737839418,-519.62703884,0.00015469,2]
[404022129,1769737839427,-500.0,0.00015469,2]
[404022130,1769737839438,-500.0,0.00015469,2]
[404022131,1769737839448,-500.0,0.00015469,2]
[404022132,1769737839457,-500.0,0.00015469,2]
[404022133,1769737839467,-500.0,0.00015469,2]
[404022134,1769737839476,-334.5472959,0.00015557,2]
[404022135,1769737839486,-2523.04193956,0.00015731,2]
[404022136,1769737839495,-328.11460556,0.00015731,2]
[404022142,1769737839943,-6330.23299137,0.00015731,2]
[404022143,1769737839953,-10340.76700862,0.00015731,2]
[404022144,1769737839965,-1405.34739153,0.00015731,2]
[404022145,1769737839975,-13187.69177371,0.00015731,2]
[404022146,1769737839986,-4383.79287995,0.00015731,2]
[404022147,1769737839996,-3766.40712005,0.00015731,2]
[404022148,1769737840008,-20008.43297995,0.00015731,2]
[404022149,1769737840018,-343.81701201,0.00015741,2]
[404022150,1769737840028,-1024.33390401,0.00015741,2]
[404022151,1769737840038,-1114.24219479,0.00015741,2]
[404022152,1769737840048,-500.0,0.00015806,2]
[404022153,1769737840057,-952.63336648,0.00015832,2]
[404022154,1769737840067,-239.75,0.00015886,2]
[404022155,1769737840077,-151.0,0.00015918,2]
[404022156,1769737840086,-151.0,0.00015918,2]
[404022157,1769737840095,-714.48394973,0.0001596,2]
[404022158,1769737840104,-416.0,0.00016,2]
[404022159,1769737840114,-1875.35347949,0.00016,2]
[404022160,1769737840133,-616.0,0.00016079,2]
[404022161,1769737840147,-151.0,0.00016104,2]
[404022162,1769737840156,-9544.30170782,0.00016107,2]
[404022163,1769737840167,-2500.0,0.00016141,2]
[404022164,1769737840176,-616.0,0.00016153,2]
[404022165,1769737840186,-616.0,0.00016167,2]
[404022166,1769737840196,-616.0,0.00016171,2]
[404022167,1769737840205,-505.2,0.00016187,3]
[404022168,1769737840215,-51946.62,0.00016197,2]
[404022169,1769737840225,-616.0,0.00016207,2]
[404022170,1769737840235,-616.0,0.00016221,2]
[404022171,1769737840244,-616.0,0.0001624,2]
[404022172,1769737840254,-36326.5142,0.00016241,2]
[404022173,1769737840264,-9544.30170775,0.00016306,2]
[404022174,1769737840274,-616.0,0.00016324,2]
[404022176,1769737840284,-1334.0,0.00016341,2]
[404022178,1769737840294,-1409.0,0.00016341,2]
[404022180,1769737840303,-616.0,0.00016341,2]
[404022181,1769737840312,-569.915,0.00016341,2]
[404022182,1769737840322,-6575.0,0.00016341,2]
[404022183,1769737840331,-5961.417,0.00016341,2]
[404022185,1769737840341,-500.0,0.00016373,2]
[404022187,1769737840351,-608.1085236,0.00016373,2]
[404022188,1769737840361,-500.0,0.00016373,2]
[404022189,1769737840370,-500.0,0.00016373,2]
[404022190,1769737840380,-501.28846028,0.00016373,2]
[404022191,1769737840393,-501.64885001,0.00016373,2]
[404022193,1769737840403,-502.45418928,0.00016373,2]
[404022195,1769737840414,-503.94309343,0.00016373,2]
[404022196,1769737840424,-500.0,0.00016373,2]
[404022197,1769737840433,-503.72095559,0.00016373,2]
[404022198,1769737840443,-500.0,0.00016373,2]
[404022199,1769737840453,-12.67815103,0.00016373,2]
[404022200,1769737840478,-487.32184897,0.00016373,2]
[404022201,1769737840487,-500.0,0.00016373,2]
[404022202,1769737840496,-313.29582773,0.0001638,2]
[404022204,1769737840508,-674.58497331,0.0001638,2]
[404022206,1769737840517,-800.0,0.00016438,2]
[404022208,1769737840526,-616.0,0.00016454,2]
[404022210,1769737840536,-9544.30170775,0.00016505,2]
[404022211,1769737840546,-616.0,0.00016521,2]
[404022212,1769737840556,-616.0,0.00016529,2]
[404022213,1769737840567,-2351.0,0.00016599,2]
[404022214,1769737840576,-616.0,0.00016617,2]
[404022215,1769737840587,-9544.30170775,0.00016705,2]
[404022216,1769737840598,-151.0,0.00016711,2]
[404022217,1769737840608,-165.35,0.00016712,2]
[404022218,1769737840617,-507.45488603,0.00016714,2]
[404022219,1769737840627,-500.0,0.00016714,2]
[404022220,1769737840636,-199.38200897,0.00016714,2]
[404022221,1769737840652,-500.0,0.00016714,2]
[404022222,1769737840661,-500.0,0.00016714,2]
[404022223,1769737840671,-500.0,0.00016714,2]
[404022224,1769737840680,-500.0,0.00016714,5]
[404022225,1769737840694,-500.0,0.00016714,2]
[404022226,1769737840707,-533.01,0.000168,2]
[404022227,1769737840718,-616.0,0.00016814,2]
[404022228,1769737840728,-616.0,0.00016856,2]
[404022229,1769737840738,-616.0,0.00016885,2]
[404022230,1769737840750,-616.0,0.00016891,2]
[404022231,1769737840760,-9544.30170775,0.00016904,2]
[404022232,1769737840770,-860.32,0.00016904,2]
[404022233,1769737840780,-860.32,0.00016904,2]
[404022234,1769737840790,-1361.59,0.00016904,2]
[404022235,1769737840799,-1083.83637239,0.00016921,2]
[404022236,1769737840809,-1000.0,0.00016921,2]
[404022237,1769737840819,-502.01156018,0.00016921,2]
[404022238,1769737840829,-1000.0,0.00016921,2]
[404022239,1769737840838,-1005.36963619,0.00016921,2]
[404022240,1769737840848,-1000.0,0.00016921,2]
[404022241,1769737840858,-1000.0,0.00016921,2]
[404022242,1769737840868,-9999.99,0.00016922,2]
[404022243,1769737840877,-346.92554585,0.00016926,2]
[404022244,1769737840887,-599.60298507,0.00016927,2]
[404022245,1769737840899,-747.8093786,0.00016927,2]
[404022246,1769737840909,-1024.43239068,0.00016928,2]
[404022247,1769737840919,-225.54,0.0001695,2]
[404022248,1769737840928,-250.0,0.00017,2]
[404022249,1769737840938,-556.46974885,0.00017,5]
[404022250,1769737840948,-2829.27314129,0.00017005,2]
[404022251,1769737840958,-613.62,0.00017067,2]
[404022252,1769737840967,-1200.0,0.000171,6]
[404022253,1769737840978,-9544.30170775,0.00017103,2]
[404022254,1769737840988,-2829.27314121,0.00017104,2]
[404022255,1769737840998,-151.0,0.00017105,2]
[404022256,1769737841008,-151.0,0.00017105,2]
[404022257,1769737841017,-14.55923662,0.00017105,2]
[404022258,1769737841154,-136.44076338,0.00017105,2]
[404022259,1769737841164,-151.0,0.00017105,2]
[404022260,1769737841174,-1000.0,0.00017105,2]
[404022261,1769737841184,-500.0,0.00017178,2]
[404022262,1769737841194,-465.65484319,0.00017184,2]
[404022263,1769737841206,-150.34515681,0.00017184,2]
[404022264,1769737841216,-1915.65484319,0.000172,6]
[404022265,1769737841228,-584.34515681,0.000172,6]
[404022266,1769737841238,-701.36624377,0.00017204,2]
[404022267,1769737841288,315.776331,0.00013631,2]
[404022268,1769737841305,-2127.90689744,0.00017204,2]
[404022269,1769737841315,-1000.0,0.00017209,2]
[404022270,1769737841325,-616.0,0.00017232,2]
[404022271,1769737841334,-616.0,0.00017245,2]
[404022272,1769737841343,-616.0,0.0001725,2]
[404022273,1769737841354,-3800.0,0.000173,6]
[404022274,1769737841364,-4164.18203583,0.00017302,2]
[404022275,1769737841383,-1755.1835412,0.00017302,2]
[404022276,1769737841403,-3624.93613072,0.00017302,2]
[404022277,1769737841414,-2829.27314121,0.00017303,2]
[404022278,1769737841424,-154.82705242,0.00017353,2]
[404022279,1769737841435,-25000.0,0.00017356,3]
[404022280,1769737841445,-169.337057,0.00017356,2]
[404022281,1769737841459,-151.0,0.00017356,2]
[404022282,1769737841470,-25000.0,0.00017365,3]
[404022283,1769737841480,-25000.0,0.00017374,3]
[404022284,1769737841491,-151.0,0.00017374,2]
[404022285,1769737841501,-151.0,0.00017374,2]
[404022286,1769737841511,-151.0,0.00017382,2]
[404022287,1769737841522,-151.0,0.00017382,2]
[404022288,1769737841532,-25000.0,0.00017382,3]
[404022289,1769737841542,-1661.23353143,0.00017385,2]
[404022290,1769737841552,-159.0424929,0.00017389,2]
[404022291,1769737841563,-18508.16110684,0.00017391,3]
[404022292,1769737841575,-342.57702493,0.00017391,3]
[404022293,1769737841588,-6149.26186823,0.00017391,3]
[404022294,1769737841598,-616.0,0.00017396,2]
[404022295,1769737841608,-2939.0,0.000174,2]
[404022296,1769737841618,-7637.13180719,0.000174,3]
[404022297,1769737841630,-1371.92326631,0.000174,3]
[404022298,1769737841673,-151.28,0.00015918,2]
[404022299,1769737841682,-677.45,0.000174,3]
[404022300,1769737841696,-4813.21718202,0.000174,3]
[404022301,1769737841710,-571.00000006,0.000174,3]
[404022307,1769737842563,-929.04079354,0.000174,3]
[404022308,1769737842575,-411.185,0.000174,3]
[404022309,1769737842586,-322.33851226,0.000174,3]
[404022310,1769737842597,-571.44905933,0.000174,3]
[404022311,1769737842612,-4133.88143156,0.000174,3]
[404022312,1769737842637,-151.0,0.00017105,2]
[404022313,1769737842650,-3147.86,0.000174,3]
[404022314,1769737842661,-413.52294773,0.000174,3]
[404022315,1769737842671,-151.0,0.000174,2]
[404022316,1769737842680,-5100.0,0.000174,6]
[404022317,1769737842694,-2585.83099053,0.00017403,2]
[404022318,1769737842706,-243.44215068,0.00017403,2]
[404022319,1769737842715,-189.65715348,0.00017463,2]
[404022320,1769737842727,-369.00615577,0.00017463,2]
[404022321,1769737842745,-57.33669075,0.00017463,2]
[404022322,1769737842754,-507.6585521,0.00017468,2]
[404022323,1769737842765,-506.51912668,0.00017468,2]
[404022324,1769737842774,-503.41872439,0.00017468,2]
[404022325,1769737842784,-502.10432165,0.00017468,2]
[404022326,1769737842795,-616.0,0.00017474,2]
[404022327,1769737842805,-1062.33638913,0.00017476,2]
[404022328,1769737842814,-315.17619531,0.00017483,2]
[404022329,1769737842833,-449.495,0.00017483,2]
[404022333,1769737843196,-235.32880469,0.00017483,2]
[404022335,1769737843206,-200.0,0.00017488,2]
[404022337,1769737843215,-6400.0,0.000175,6]
[404022340,1769737843225,-616.0,0.00017501,2]
[404022342,1769737843234,-8964.25217811,0.00017502,2]
[404022348,1769737843415,-580.04952964,0.00017502,2]
[404022349,1769737843426,-2829.27314121,0.00017502,2]
[404022350,1769737843436,-200.0,0.00017526,2]
[404022351,1769737843445,-800.8943689,0.00017534,2]
[404022352,1769737843455,-200.0,0.00017536,2]
[404022353,1769737843474,-1200.0,0.000176,6]
[404022354,1769737843484,-2829.27314121,0.00017602,2]
[404022355,1769737843494,-616.0,0.00017639,2]
[404022356,1769737843504,-500.0,0.00017699,2]
[404022357,1769737843514,-150.19716968,0.00017699,2]
[404022358,1769737843523,-150.0,0.00017699,2]
[404022359,1769737843534,-500.0,0.00017699,2]
[404022360,1769737843543,-500.0,0.00017699,2]
[404022361,1769737843553,-500.0,0.00017699,2]
[404022362,1769737843562,-150.0,0.00017699,2]
[404022363,1769737843572,-500.0,0.00017699,2]
[404022364,1769737843581,-150.0,0.00017699,2]
[404022365,1769737843591,-150.0,0.00017699,2]
[404022366,1769737843601,-150.0,0.00017699,2]
[404022367,1769737843612,-500.0,0.00017699,2]
[404022368,1769737843621,-150.0,0.00017699,2]
[404022369,1769737843631,-150.0,0.00017699,2]
[404022370,1769737843640,-150.0,0.00017699,2]
[404022371,1769737843652,-279.09512933,0.00017699,2]
[404022372,1769737843661,-150.0,0.00017699,2]
[404022373,1769737843670,-150.0,0.00017699,2]
[404022374,1769737843682,-500.0,0.00017699,2]
[404022375,1769737843695,-500.0,0.00017699,2]
[404022376,1769737843705,-500.0,0.00017699,2]
[404022377,1769737843714,-290.22964713,0.00017699,2]
[404022378,1769737843724,-500.0,0.00017699,2]
[404022379,1769737843735,-153.50418158,0.00017699,2]
[404022380,1769737843744,-500.0,0.00017699,2]
[404022381,1769737843754,-500.0,0.00017699,2]
[404022382,1769737843764,-150.0,0.00017699,2]
[404022383,1769737843777,-150.0,0.00017699,2]
[404022384,1769737843788,-500.0,0.00017699,2]
[404022385,1769737843797,-500.0,0.00017699,2]
[404022386,1769737843807,-150.0,0.00017699,2]
[404022387,1769737843817,-500.0,0.00017699,2]
[404022388,1769737843826,-500.0,0.00017699,2]
[404022389,1769737843840,-500.0,0.00017699,2]
[404022390,1769737843851,-500.0,0.00017699,2]
[404022391,1769737843861,-1200.0,0.000177,6]
[404022392,1769737843871,-9544.30170775,0.00017701,2]
[404022393,1769737843881,-151.0,0.00017701,2]
[404022394,1769737843890,-151.0,0.00017701,2]
[404022395,1769737843906,-2829.27314121,0.00017701,2]
[404022396,1769737843916,-500.0,0.00017754,2]
[404022397,1769737843926,-150.0,0.00017754,2]
[404022398,1769737843936,-500.0,0.00017754,2]
[404022399,1769737843946,-500.0,0.00017754,2]
[404022400,1769737843955,-500.0,0.00017754,2]
[404022401,1769737843965,-150.0,0.00017754,2]
[404022402,1769737843975,-500.0,0.00017754,2]
[404022403,1769737843985,-150.0,0.00017754,2]
[404022404,1769737843995,-150.0,0.00017754,2]
[404022405,1769737844005,-150.0,0.00017754,2]
[404022406,1769737844014,-500.0,0.00017754,2]
[404022407,1769737844024,-150.0,0.00017754,2]
[404022408,1769737844037,-165.50022764,0.00017754,2]
[404022409,1769737844047,-150.0,0.00017754,2]
[404022410,1769737844057,-150.0,0.00017754,2]
[404022411,1769737844066,-150.0,0.00017754,2]
[404022412,1769737844076,-500.0,0.00017754,2]
[404022413,1769737844086,-500.0,0.00017754,2]
[404022414,1769737844096,-500.0,0.00017754,2]
[404022415,1769737844106,-552.47902127,0.00017754,2]
[404022416,1769737844115,-500.0,0.00017754,2]
[404022417,1769737844125,-500.0,0.00017754,2]
[404022418,1769737844135,-150.0,0.00017754,2]
[404022419,1769737844147,-150.0,0.00017754,2]
[404022420,1769737844157,-500.0,0.00017754,2]
[404022421,1769737844167,-500.0,0.00017754,2]
[404022422,1769737844176,-152.12065728,0.00017754,2]
[404022423,1769737844187,-503.43690309,0.00017754,2]
[404022424,1769737844197,-500.0,0.00017754,2]
[404022425,1769737844206,-500.0,0.00017754,2]
[404022426,1769737844216,-500.0,0.00017754,2]
[404022427,1769737844226,-151.0,0.00017754,2]
[404022428,1769737844240,-151.0,0.00017754,2]
[404022429,1769737844250,-1000.0,0.00017757,2]
[404022430,1769737844260,-1200.0,0.000178,6]
[404022431,1769737844270,-2829.27314121,0.00017801,2]
[404022432,1769737844279,-500.0,0.00017808,2]
[404022433,1769737844289,-500.0,0.00017809,2]
[404022434,1769737844300,-150.0,0.00017809,2]
[404022435,1769737844309,-500.0,0.00017809,2]
[404022436,1769737844319,-567.14289789,0.00017809,2]
[404022437,1769737844328,-500.0,0.00017809,2]
[404022438,1769737844337,-150.0,0.00017809,2]
[404022439,1769737844348,-546.30415783,0.00017809,2]
[404022441,1769737844358,-150.0,0.00017809,2]
[404022443,1769737844368,-215.11138098,0.00017809,2]
[404022445,1769737844377,-154.88156187,0.00017809,2]
[404022446,1769737844387,-500.0,0.00017809,2]
[404022447,1769737844399,-150.0,0.00017809,2]
[404022449,1769737844409,-150.0,0.00017809,2]
[404022451,1769737844419,-250.0,0.00017809,2]
[404022452,1769737844432,-150.0,0.00017809,2]
[404022453,1769737844442,-500.0,0.00017809,2]
[404022454,1769737844453,-500.0,0.00017809,2]
[404022455,1769737844463,-500.0,0.00017809,2]
[404022456,1769737844472,-500.0,0.00017809,2]
[404022457,1769737844482,-500.0,0.00017809,2]
[404022458,1769737844492,-254.77237844,0.00017809,2]
[404022459,1769737844502,-150.0,0.00017809,2]
[404022460,1769737844513,-500.0,0.00017809,2]
[404022461,1769737844523,-500.0,0.00017809,2]
[404022462,1769737844532,-500.0,0.00017809,2]
[404022463,1769737844543,-158.96548299,0.00017809,2]
[404022464,1769737844553,-500.0,0.00017809,2]
[404022465,1769737844563,-242.94719,0.0001782,2]
[404022466,1769737844572,-500.0,0.00017863,2]
[404022467,1769737844582,-500.0,0.00017863,2]
[404022468,1769737844592,-178.25864185,0.00017863,2]
[404022469,1769737844603,-500.0,0.00017863,2]
[404022470,1769737844613,-500.0,0.00017863,2]
[404022471,1769737844622,-168.82088444,0.00017863,2]
[404022472,1769737844636,-235.1567117,0.00017863,2]
[404022473,1769737844649,-500.0,0.00017863,2]
[404022474,1769737844659,-150.0,0.00017863,2]
[404022475,1769737844669,-200.0,0.00017863,2]
[404022476,1769737844679,-150.0,0.00017863,2]
[404022477,1769737844689,-500.0,0.00017863,2]
[404022478,1769737844701,-500.0,0.00017863,2]
[404022479,1769737844713,-500.0,0.00017863,2]
[404022480,1769737844723,-500.0,0.00017863,2]
[404022481,1769737844735,-500.0,0.00017863,2]
[404022482,1769737844745,-150.0,0.00017863,2]
[404022483,1769737844756,-500.0,0.00017863,2]
[404022484,1769737844766,-500.0,0.00017863,2]
[404022485,1769737844777,-500.0,0.00017863,2]
[404022486,1769737844787,-500.0,0.00017863,2]
[404022487,1769737844797,-500.0,0.00017864,2]
[404022488,1769737844807,-349.92262739,0.00017873,6]
[404022489,1769737844817,-500.0,0.00017882,2]
[404022490,1769737844830,-500.0,0.00017882,2]
[404022491,1769737844840,-500.0,0.00017882,2]
[404022492,1769737844850,-500.0,0.00017882,2]
[404022493,1769737844861,-268.17431958,0.00017882,2]
[404022494,1769737844873,-500.0,0.00017899,2]
[404022495,1769737844883,-500.0,0.00017899,2]
[404022496,1769737844895,-500.0,0.00017899,2]
[404022497,1769737844906,-543.82169747,0.00017899,2]
[404022498,1769737844915,-500.0,0.00017899,2]
[404022499,1769737844925,-230.99204983,0.000179,2]
[404022500,1769737844935,-10000.0,0.000179,2]
[404022501,1769737844944,-21475.01977079,0.000179,3]
[404022502,1769737844954,-1761.98822314,0.000179,2]
[404022503,1769737844963,-1200.0,0.000179,6]
[404022504,1769737844973,-9544.30170775,0.000179,2]
[404022505,1769737844984,-2829.27314121,0.000179,2]
[404022506,1769737844995,-314.04097826,0.000179,2]
[404022507,1769737845008,-959.80397132,0.000179,2]
[404022508,1769737845020,-2847.17965677,0.000179,2]
[404022509,1769737845032,-500.0,0.00017918,2]
[404022510,1769737845043,-500.0,0.00017918,2]
[404022511,1769737845054,-500.0,0.00017918,2]
[404022512,1769737845066,-504.38486675,0.00017918,2]
[404022513,1769737845078,-154.30115167,0.00017918,2]
[404022514,1769737845089,-150.0,0.00017918,2]
[404022515,1769737845103,-279.63759782,0.00017918,2]
[404022516,1769737845113,-500.0,0.00017918,2]
[404022517,1769737845124,-500.0,0.00017918,2]
[404022519,1769737845134,-500.0,0.00017918,2]
[404022520,1769737845146,-500.0,0.00017918,2]
[404022522,1769737845157,-500.0,0.00017918,2]
[404022523,1769737845166,-150.0,0.00017918,2]
[404022524,1769737845176,-500.0,0.00017918,2]
[404022525,1769737845185,-500.0,0.00017918,2]
[404022526,1769737845195,-500.0,0.00017918,2]
[404022527,1769737845205,-500.0,0.00017918,2]
[404022528,1769737845215,-242.94719,0.0001792,2]
[404022529,1769737845234,-500.0,0.00017972,2]
[404022530,1769737845244,-257.25089624,0.00017973,2]
[404022531,1769737845255,-500.0,0.00017973,2]
[404022532,1769737845265,-503.11916195,0.00017973,2]
[404022533,1769737845277,-502.75032286,0.00017973,2]
[404022534,1769737845287,-500.0,0.00017973,2]
[404022535,1769737845298,-508.18250614,0.00017973,2]
[404022536,1769737845307,-500.0,0.00017973,2]
[404022537,1769737845317,-502.18715897,0.00017973,2]
[404022538,1769737845327,-500.0,0.00017973,2]
[404022539,1769737845337,-205.62817675,0.00017973,2]
[404022540,1769737845346,-500.0,0.00017973,2]
[404022541,1769737845356,-500.0,0.00017973,2]
[404022542,1769737845366,-500.0,0.00017973,2]
[404022543,1769737845376,-500.0,0.00017973,2]
[404022544,1769737845385,-500.0,0.00017973,2]
[404022545,1769737845396,-224.9946252,0.00017973,2]
[404022546,1769737845407,-500.0,0.00017973,2]
[404022547,1769737845417,-500.0,0.00017973,2]
[404022548,1769737845427,-500.0,0.00017973,2]
[404022549,1769737845436,-500.0,0.00017973,2]
[404022550,1769737845446,-150.0,0.00017973,2]
[404022551,1769737845456,-150.0,0.00017973,2]
[404022553,1769737845467,-187.74401017,0.0001799,2]
[404022555,1769737845477,-187.74401017,0.0001799,2]
[404022557,1769737845487,-187.74401017,0.0001799,2]
[404022558,1769737845498,-150.0,0.00017999,2]
[404022559,1769737845509,-233.98733604,0.00017999,2]
[404022561,1769737845519,-500.0,0.00017999,2]
[404022563,1769737845530,-500.0,0.00017999,2]
[404022566,1769737845540,-158.0372416,0.00017999,2]
[404022569,1769737845550,-500.0,0.00017999,2]
[404022572,1769737845561,-500.0,0.00017999,2]
[404022575,1769737845571,-500.0,0.00017999,2]
[404022578,1769737845583,-500.0,0.00017999,2]
[404022580,1769737845597,-500.0,0.00017999,2]
[404022582,1769737845607,-268.86514349,0.00017999,2]
[404022584,1769737845617,-500.0,0.00017999,2]
[404022585,1769737845627,-500.0,0.00017999,2]
[404022586,1769737845637,-500.0,0.00017999,2]
[404022587,1769737845649,-293.90844871,0.00017999,2]
[404022588,1769737845659,-151.0,0.00017999,2]
[404022589,1769737845669,-300.0,0.00017999,2]
[404022590,1769737845679,-666.0,0.00017999,2]
[404022591,1769737845690,-500.0,0.00017999,2]
[404022593,1769737845700,-500.0,0.00017999,2]
[404022594,1769737845712,-509.40961293,0.00017999,2]
[404022595,1769737845722,-165.42081842,0.00017999,2]
[404022597,1769737845733,-33201.65001347,0.00018,2]
[404022613,1769737846902,-16462.2,0.00018,2]
[404022614,1769737846929,-386.49005528,0.00018,2]
[404022615,1769737846940,-1219.4810845,0.00018,2]
[404022616,1769737846950,-687.77211979,0.00018,2]
[404022617,1769737846987,-151.0,0.00017374,2]
[404022618,1769737846997,-32519.40597621,0.00018,2]
[404022619,1769737847009,-6974.67540657,0.00018,2]
[404022620,1769737847035,-7900.52964751,0.00018,2]
[404022621,1769737849022,-377.4424408,0.00013818,2]
[404022622,1769737849046,-122.5575592,0.00013818,2]
[404022623,1769737849056,-500.0,0.00013818,2]
[404022624,1769737849066,-992.0,0.00015728,2]
[404022625,1769737849086,-1561.0,0.0001576,2]
[404022626,1769737849095,-827.0,0.00015791,2]
[404022627,1769737849105,-151.0,0.00017105,2]
[404022628,1769737849114,-208.830753,0.00017374,2]
[404022629,1769737849124,-151.0,0.00017701,2]
[404022630,1769737849133,-57932.74911641,0.00018,2]
[404022631,1769737849151,-1560.83632183,0.00018,2]
[404022632,1769737849162,-1194.07324371,0.00018,2]
[404022633,1769737849174,-1821.82014999,0.00018,2]
[404022634,1769737849185,-4441.23959371,0.00018,2]
[404022635,1769737849196,-557.96001026,0.00018,2]
[404022636,1769737849211,-2511.8867267,0.00018,2]
[404022637,1769737849224,-7278.78791481,0.00018,2]
[404022638,1769737849729,-1042.72335251,0.00018,2]
[404022639,1769737849744,-345.57713759,0.00018,2]
[404022640,1769737849755,-6011.16168207,0.00018,2]
[404022641,1769737849768,-687.424,0.00018,2]
[404022642,1769737849803,-830.57106581,0.00018,2]
[404022643,1769737849815,-8303.88096863,0.00018,2]
[404022644,1769737849831,-492256.35017677,0.00018,2]
[404022645,1769737849843,-424.00898094,0.00018,2]
[404022646,1769737851231,-491.0,0.00017395,2]
[404022647,1769737851242,-179.13854565,0.00017921,2]
[404022648,1769737851252,-654.45091994,0.00017921,2]
[404022649,1769737851262,-174.1374049,0.00017921,2]
[404022650,1769737851272,-177.6058096,0.00017921,2]
[404022651,1769737851282,-14963.36731991,0.00018,2]
[404022652,1769737851294,-286722.89465549,0.00018,2]
[404022653,1769737851305,-4060.55,0.00018,2]
[404022654,1769737851317,-1648.25,0.00018,2]
[404022655,1769737851368,-3910.80573122,0.00018,2]
[404022656,1769737851382,-331859.3647301,0.00018,2]
[404022657,1769737851395,-142557.88657871,0.00018,2]
[404022658,1769737851425,-1659.31295349,0.00018,2]
[404022659,1769737851437,-23535.73803154,0.00018,2]
[404022660,1769737851564,-1587.635991,0.00018,2]
[404022661,1769737851576,-3554.57757357,0.00018,2]
[404022662,1769737851588,-579.67372848,0.00018,2]
[404022663,1769737851604,-41010.50000001,0.00018,2]
[404022664,1769737851628,-265.0,0.00017429,2]
[404022665,1769737851638,-256.50544742,0.00018,2]
[404022666,1769737851663,-2186.39951613,0.00018,2]
[404022667,1769737851675,-404.73403491,0.00018,2]
[404022687,1769738029987,167.65,0.00013356,2]
[404022715,1769738138727,3000.0,5e-06,3]
[404022716,1769738289449,261.18210652,0.000252,48]